[Event "DMP-III LIGA Senior PK 2020"]
[Site "Bystre"]
[Date "2020.07.09"]
[Round "3.27"]
[White "Babiarz, Arkadiusz"]
[Black "Biesiadecki, Adam"]
[Result "1-0"]
[ECO "A15"]
[WhiteElo "1840"]
[BlackElo "1539"]
[Annotator "NA RC"]
[PlyCount "67"]
[EventDate "2020.07.05"]
[EventType "team-tourn"]
[EventCountry "POL"]
[SourceTitle "playchess.com"]
[Source "ChessBase"]
[SourceQuality "1"]
[TimeControl "5400+30"]

1. c4 {[%emt 0:00:00]} Nf6 {[%emt 0:00:00]} 2. g3 {[%emt 0:00:00]} e6 {[%emt 0:00:14]} 3. Bg2 {[%emt 0:00:22]} c5 {[%emt 0:00:22]} 4. e4 {[%emt 0:04:20]} Nc6 {[%emt 0:01:18]} 5. Nc3 {[%emt 0:00:12]} b6 {[%emt 0:00:40]} 6. e5 {[%emt 0:01:42] A36: Symmetrical English vs ...g6: 4 Bg2 Bg7.} Ng8 {[%emt 0:00:02]} 7. Nge2 {[%emt 0:02:05]} Rb8 {[%emt 0:00:29] [#]} 8. d4 $146 {[%emt 0:00:57]} ({Predecessor:} 8. f4 Bb7 9. O-O d6 10. Qa4 Qd7 11. exd6 Bxd6 12. d3 Nf6 13. h3 O-O 14. Be3 {1-0 (50) Smith,R (2333)-Selnes,H (1957) Sydney 2008}) 8... Nxd4 {[%emt 0:00:38]} 9. Nxd4 {[%emt 0:00:32]} cxd4 {[%emt 0:00:30]} 10. Qxd4 {[%emt 0:02:51]} a6 {[%emt 0:02:15]} 11. O-O {[%emt 0:03:45]} Bb7 {[%emt 0:02:03]} 12. Bxb7 {[%emt 0:07:26]} Rxb7 {[%emt 0:00:02]} 13. Ne4 {[%emt 0:00:09]} f5 {[%emt 0:05:31]} 14. Bg5 {[%emt 0:05:27]} Qb8 {[%emt 0:00:32]} 15. Nd6+ {[%emt 0:00:16]} Bxd6 {[%emt 0:00:11]} 16. exd6 {[%emt 0:00:03]} Kf7 {[%emt 0:00:07]} 17. g4 {[%emt 0:03:08]} fxg4 {[%emt 0:00:43]} 18. f4 {[%emt 0:01:56]} Nf6 {[%emt 0:02:32]} 19. Rae1 {[%emt 0:04:44]} Re8 {[%emt 0:01:31]} 20. Re5 {[%emt 0:00:15]} Qd8 {[%emt 0:03:35]} 21. f5 {[%emt 0:00:19]} Rb8 {[%emt 0:01:21]} 22. fxe6+ {[%emt 0:08:11]} Rxe6 {[%emt 0:02:14]} 23. Ref5 {[%emt 0:05:24]} Rc8 {[%emt 0:03:47]} 24. b4 {[%emt 0:06:40]} Qh8 {[%emt 0:03:01]} 25. Qd5 {[%emt 0:07:17]} Kg6 {[%emt 0:00:50]} 26. Rxf6+ {[%emt 0:02:38]} gxf6 {[%emt 0:02:54]} 27. Qf5+ {[%emt 0:00:08]} Kf7 {[%emt 0:00:19]} 28. Bxf6 {[%emt 0:01:13]} Qg8 $2 {[%emt 0:02:15]} (28... Rxf6 $11 29. Qxd7+ Kg6 30. Qxg4+ Kf7 31. Qd7+ Kg6 32. Qg4+ Kf7 33. Qd7+ Kg6 34. Qg4+) 29. Be7+ {[%emt 0:04:13]} Kg7 {[%emt 0:00:14]} 30. Bf6+ {[%emt 0:08:49]} Kf7 $1 {[%emt 0:01:08]} 31. Be7+ $2 {[%emt 0:00:30]} (31. Qf4 $18 a5 32. bxa5 bxa5 {[#]} 33. c5 $1 {[%mdl 512]}) 31... Kg7 {[%emt 0:00:09]} 32. Qg5+ {[%emt 0:13:27]} (32. Rf4 $5 {[%cal Rc4c5]}) 32... Rg6 {[%emt 0:02:23]} (32... Kh8 $11 33. Bf6+ Rxf6 34. Qxf6+ Qg7) 33. Bf6+ {[%emt 0:01:38]} Kf7 {[%emt 0:01:18]} 34. Ba1+ {[%emt 0:00:30]} 1-0

[Event "DMP-III LIGA Senior PK 2020"]
[Site "Bystre"]
[Date "2020.07.09"]
[Round "3.28"]
[White "Juszczuk, Grzegorz"]
[Black "Ziemniak, Piotr"]
[Result "1/2-1/2"]
[ECO "A41"]
[WhiteElo "1809"]
[BlackElo "1791"]
[Annotator "NA RC"]
[PlyCount "77"]
[EventDate "2020.07.05"]
[EventType "team-tourn"]
[EventCountry "POL"]
[SourceTitle "playchess.com"]
[Source "ChessBase"]
[SourceQuality "1"]
[TimeControl "5400+30"]

1. d4 {[%emt 0:00:00]} d6 {[%emt 0:00:00]} 2. Nf3 {[%emt 0:00:00]} Nf6 {[%emt 0:00:09]} 3. Bf4 {[%emt 0:00:03]} g6 {[%emt 0:00:56]} 4. e3 {[%emt 0:00:13]} Bg7 {[%emt 0:02:16]} 5. Be2 {[%emt 0:00:15]} c5 {[%emt 0:01:00]} 6. c3 {[%emt 0:01:17] A48: 1 d4 Nf6 2 Nf3 g6: Torre, London and Colle Systems.} cxd4 {[%emt 0:01:24]} 7. cxd4 {[%emt 0:00:26]} Qa5+ {[%emt 0:03:47]} 8. Nbd2 {[%emt 0:00:47]} O-O {[%emt 0:09:23]} 9. O-O {[%emt 0:03:39]} Nc6 {[%emt 0:04:40] [#]} 10. h3 $146 {[%emt 0:01:31]} ({Predecessor:} 10. Nc4 Qd8 11. d5 Na5 12. b4 Nxc4 13. Bxc4 Nh5 14. Rc1 Nxf4 15. exf4 Qb6 16. Qd2 {0-1 (33) Hestvik,M-Haddock,P (1580) Caleta 2019}) 10... e5 {[%emt 0:05:20]} 11. Nc4 {[%emt 0:04:38]} Qc7 {[%emt 0:05:45]} 12. dxe5 {[%emt 0:00:26]} dxe5 {[%emt 0:03:38]} 13. Nfxe5 {[%emt 0:02:07]} Rd8 {[%emt 0:10:03]} 14. Qa4 {[%emt 0:11:38]} Nxe5 {[%emt 0:04:02]} 15. Nxe5 {[%emt 0:03:28]} Qe7 {[%emt 0:06:06]} 16. Nf3 {[%emt 0:03:31]} Nd5 {[%emt 0:01:59]} 17. Bg5 {[%emt 0:01:38]} f6 {[%emt 0:05:16]} 18. Bh4 {[%emt 0:00:11]} Kh8 {[%emt 0:00:30]} 19. Nd4 {[%emt 0:05:45]} g5 {[%emt 0:02:56]} 20. Bg3 {[%emt 0:00:10]} f5 {[%emt 0:00:08]} 21. Rfe1 {[%emt 0:09:30]} f4 $1 {[%emt 0:04:48]} 22. exf4 {[%emt 0:02:50]} gxf4 $2 {[%emt 0:01:43]} (22... Nb6 $1 $11 23. Qb5 Bxd4) 23. Bf3 {[%emt 0:01:27]} Nb6 {[%emt 0:08:21]} (23... Bd7 $142 24. Rxe7 Bxa4 25. Rxg7 Kxg7) 24. Qb5 $2 {[%emt 0:05:55]} (24. Rxe7 $18 Nxa4 25. Bh4 (25. Rxg7 fxg3 26. Rf7 gxf2+ 27. Kxf2 Rxd4 $11)) 24... Qf8 {[%emt 0:04:36] [#]} 25. Bh4 $1 {[%emt 0:01:21]} Bd7 {[%emt 0:02:26]} 26. Qd3 {[%emt 0:08:17]} Bf5 $2 {[%emt 0:05:55]} (26... Bc6 $1 $14 27. Bxd8 Rxd8) 27. Qb3 $2 {[%emt 0:04:11]} (27. Qxf5 $18 Rxd4 28. Qh5) 27... Rxd4 {[%emt 0:00:35]} 28. Bxb7 {[%emt 0:00:27]} Rb8 {[%emt 0:00:48]} 29. Bf3 $2 {[%emt 0:00:04]} (29. Be7 Qg8 30. Qxg8+ Rxg8 31. Rac1) 29... Nc4 {[%emt 0:01:58] Discovered Attack} 30. Qa4 $19 {[%emt 0:00:32]} Ne5 {[%emt 0:00:53]} 31. Qxa7 {[%emt 0:00:14]} Nxf3+ {[%emt 0:00:16]} 32. gxf3 {[%emt 0:00:02]} Rd7 {[%emt 0:00:28]} 33. Qa4 {[%emt 0:00:43]} Rdb7 {[%emt 0:01:16]} 34. Re2 {[%emt 0:00:42]} Bxh3 {[%emt 0:00:33]} 35. Rae1 {[%emt 0:00:44]} Bd7 {[%emt 0:00:36]} 36. Qa5 {[%emt 0:01:34]} Qf7 {[%emt 0:01:49]} 37. Re7 {[%emt 0:02:11]} Qg6+ {[%emt 0:00:41]} 38. Kh2 {[%emt 0:00:07]} Qh6 {[%emt 0:00:55]} 39. Qg5 {[%emt 0:00:44]} 1/2-1/2

[Event "DMP-III LIGA Senior PK 2020"]
[Site "Bystre"]
[Date "2020.07.09"]
[Round "3.30"]
[White "Krzyzanowska-Zadlo, Lidia"]
[Black "Polak, Sylwia"]
[Result "1-0"]
[ECO "D02"]
[WhiteElo "1801"]
[BlackElo "1614"]
[Annotator "NA RC"]
[PlyCount "57"]
[EventDate "2020.07.05"]
[EventType "team-tourn"]
[EventCountry "POL"]
[SourceTitle "playchess.com"]
[Source "ChessBase"]
[SourceQuality "1"]
[TimeControl "5400+30"]

1. Nf3 {[%emt 0:00:00]} d5 {[%emt 0:00:00]} 2. d4 {[%emt 0:00:34]} Nf6 {[%emt 0:00:00]} 3. g3 {[%emt 0:03:35]} e6 {[%emt 0:00:57]} 4. Bg2 {[%emt 0:00:30]} c5 {[%emt 0:01:39]} 5. c4 {[%emt 0:06:59]} Nc6 {[%emt 0:03:29]} 6. cxd5 {[%emt 0:01:16]} Nxd5 {[%emt 0:02:55]} 7. O-O {[%emt 0:02:46]} Be7 {[%emt 0:03:46]} 8. Nc3 {[%emt 0:04:25]} Nxc3 {[%emt 0:08:19]} 9. bxc3 {[%emt 0:00:42]} O-O {[%emt 0:00:41]} 10. e4 {[%emt 0:02:42]} cxd4 {[%emt 0:03:28]} 11. cxd4 {[%emt 0:00:11]} Qa5 {[%emt 0:00:53] [#] D41: Queen's Gambit Declined: Semi-Tarrasch with 5 cxd5.} 12. Qe2 $146 {[%emt 0:05:54]} ({Predecessor:} 12. Qb3 Rd8 13. Bb2 Qb4 14. Rfd1 Na5 15. Qxb4 Bxb4 16. Rac1 Bd7 17. d5 exd5 18. exd5 f6 19. Nd4 {1-0 (27) Sharashenidze,A (2343)-Jelinek,M (2101) Czech Republic 2016}) 12... Rd8 {[%emt 0:04:07]} 13. Rd1 {[%emt 0:01:11]} Bf6 {[%emt 0:04:18]} 14. Be3 {[%emt 0:04:54]} Bd7 {[%emt 0:15:18]} 15. Rab1 {[%emt 0:04:25]} b6 {[%emt 0:04:28]} 16. e5 {[%emt 0:05:36]} Be7 {[%emt 0:00:33]} 17. Nd2 {[%emt 0:06:46]} Rac8 {[%emt 0:02:08]} 18. Ne4 {[%emt 0:08:33]} Nb4 {[%emt 0:02:58]} 19. Qg4 {[%emt 0:04:49]} Nd5 {[%emt 0:14:18]} 20. Bh6 {[%emt 0:01:16]} Bf8 {[%emt 0:00:27]} 21. Bxg7 $2 {[%emt 0:08:16]} (21. Rdc1 $14 {stays ahead.}) 21... Bxg7 {[%emt 0:00:57]} 22. Nf6+ {[%emt 0:00:34]} Kh8 {[%emt 0:08:12]} 23. Bxd5 {[%emt 0:04:00]} Bxf6 $1 {[%emt 0:01:13]} 24. Be4 $2 {[%emt 0:00:15] [#]} ({But not} 24. exf6 $2 Rg8 $19) (24. Bb7 $17 {was the only chance.} Bg7 25. Bxc8 Rxc8 26. Rbc1) 24... Bxe5 $4 {[%emt 0:02:53] [#]} (24... Bg7 $1 $19 {and all is fine.} 25. Qf4 Be8) 25. Qh4 $1 {[%emt 0:05:22]} f5 {[%emt 0:00:28]} 26. dxe5 $18 {[%emt 0:01:00]} Qxe5 {[%emt 0:04:39]} 27. Bb7 {[%emt 0:00:40]} Rb8 {[%emt 0:00:38]} 28. Rbc1 {[%emt 0:00:44]} Kg7 {[%emt 0:05:51]} 29. Qe7+ {[%emt 0:00:23]} 1-0

[Event "DMP-III LIGA Senior PK 2020"]
[Site "Bystre"]
[Date "2020.07.10"]
[Round "4.3"]
[White "Stefanski, Adam"]
[Black "Biesiadecki, Adam"]
[Result "0-1"]
[ECO "A17"]
[WhiteElo "1387"]
[BlackElo "1539"]
[Annotator "NA RC"]
[PlyCount "80"]
[EventDate "2020.07.05"]
[EventType "team-tourn"]
[EventCountry "POL"]
[SourceTitle "playchess.com"]
[Source "ChessBase"]
[SourceQuality "1"]
[TimeControl "5400+30"]

1. c4 {[%emt 0:00:24]} Nf6 {[%emt 0:00:00]} 2. Nc3 {[%emt 0:00:07]} e6 {[%emt 0:00:04]} 3. g3 {[%emt 0:00:06]} d5 {[%emt 0:00:12]} 4. cxd5 {[%emt 0:02:25]} exd5 {[%emt 0:00:32]} 5. d4 {[%emt 0:00:33]} c6 {[%emt 0:01:35]} 6. Nf3 {[%emt 0:03:56]} Bd6 {[%emt 0:02:04]} 7. Bg2 {[%emt 0:01:38]} O-O {[%emt 0:00:09]} 8. O-O {[%emt 0:00:24]} Re8 {[%emt 0:00:34]} 9. Bg5 {[%emt 0:19:26]} h6 {[%emt 0:02:14]} 10. Bxf6 {[%emt 0:05:15]} Qxf6 {[%emt 0:04:39]} 11. Re1 {[%emt 0:10:27]} Bb4 {[%emt 0:05:01]} 12. a3 {[%emt 0:02:20]} Bxc3 {[%emt 0:00:44]} 13. bxc3 {[%emt 0:00:02]} Bf5 {[%emt 0:02:40]} 14. Nd2 {[%emt 0:23:25]} Nd7 {[%emt 0:02:38]} 15. e4 {[%emt 0:08:31]} dxe4 {[%emt 0:00:06]} 16. Bxe4 {[%emt 0:03:15]} Be6 {[%emt 0:04:01]} 17. Rb1 {[%emt 0:03:11]} Nb6 {[%emt 0:00:39]} 18. Bd3 {[%emt 0:00:36]} Bf5 {[%emt 0:03:11]} 19. Ne4 {[%emt 0:05:24]} Bxe4 {[%emt 0:00:55]} 20. Bxe4 {[%emt 0:00:11]} Re7 {[%emt 0:00:36]} 21. Bd3 {[%emt 0:03:27]} Rae8 {[%emt 0:00:27]} 22. Rxe7 {[%emt 0:00:26]} Rxe7 {[%emt 0:00:01]} 23. a4 {[%emt 0:01:06]} Qg5 {[%emt 0:01:23]} 24. Qc2 {[%emt 0:04:02]} Nd5 {[%emt 0:01:02]} 25. Kg2 {[%emt 0:00:50]} Nf4+ {[%emt 0:00:07]} 26. Kg1 {[%emt 0:00:52]} h5 {[%emt 0:04:13]} 27. h4 {[%emt 0:00:01]} Qg4 {[%emt 0:01:17]} 28. Bf5 {[%emt 0:00:42]} Qf3 {[%emt 0:01:07]} 29. gxf4 {[%emt 0:00:42]} Re2 {[%emt 0:00:24]} 30. Qxe2 {[%emt 0:00:44]} Qxe2 {[%emt 0:00:02]} 31. Rxb7 {[%emt 0:00:19]} g6 {[%emt 0:00:08]} 32. Bh3 {[%emt 0:00:41]} Qe1+ {[%emt 0:00:08]} 33. Kg2 {[%emt 0:00:15]} Qxc3 {[%emt 0:00:10]} 34. Rxa7 {[%emt 0:00:16]} Qxd4 {[%emt 0:00:07]} 35. Ra6 {[%emt 0:00:55]} Qxf4 {[%emt 0:00:10]} 36. Bd7 {[%emt 0:00:22]} c5 {[%emt 0:00:19]} 37. a5 {[%emt 0:00:42]} Qe4+ {[%emt 0:00:15]} 38. Kg1 {[%emt 0:00:17]} Qb1+ {[%emt 0:00:19]} 39. Kh2 {[%emt 0:00:38]} Qb7 {[%emt 0:00:15]} 40. Rb6 {[%emt 0:00:35]} Qxd7 {[%emt 0:00:04]} 0-1

[Event "DMP-III LIGA Senior PK 2020"]
[Site "Bystre"]
[Date "2020.07.10"]
[Round "4.6"]
[White "Krzyzanowska-Zadlo, Lidia"]
[Black "Trybowska, Anna"]
[Result "1/2-1/2"]
[ECO "C10"]
[WhiteElo "1801"]
[BlackElo "1583"]
[Annotator "NA RC"]
[PlyCount "38"]
[EventDate "2020.07.05"]
[EventType "team-tourn"]
[EventCountry "POL"]
[SourceTitle "playchess.com"]
[Source "ChessBase"]
[SourceQuality "1"]
[TimeControl "5400+30"]

{[%evp 8,34,56,52,49,27,40,33,32,28,23,30,31,32767,32767,32767,32767,14,11,-8,0,-11,-14,-25,0,-22,0,-10,-12]} 1. e4 {[%emt 0:00:00]} e6 {[%emt 0:00:00]} 2. d4 {[%emt 0:00:00]} d5 {[%emt 0:00:00]} 3. Nd2 {[%emt 0:00:16]} dxe4 {[%emt 0:03:03]} 4. Nxe4 {[%emt 0:00:48]} Bd7 {[%emt 0:00:52]} 5. Nf3 {[%emt 0:07:32]} Bc6 {[%emt 0:01:00]} 6. Ng3 {[%emt 0:00:54]} Nd7 {[%emt 0:00:28]} 7. Be2 {[%emt 0:00:45]} Ngf6 {[%emt 0:00:30]} 8. O-O {[%emt 0:00:17]} Bd6 {[%emt 0:01:16]} 9. c4 {[%emt 0:02:00]} b6 {[%emt 0:00:58]} 10. Re1 {[%emt 0:04:19]} O-O {[%emt 0:00:19]} 11. a3 {[%emt 0:00:31]} a5 {[%emt 0:00:57]} 12. Bd2 {[%emt 0:01:17]} Bb7 {[%emt 0:00:50]} 13. Qc2 {[%emt 0:07:18]} c5 {[%emt 0:01:32]} 14. Rad1 {[%emt 0:01:31]} Qc7 {[%emt 0:01:27]} 15. Be3 {[%emt 0:10:30]} Rac8 {[%emt 0:00:58]} 16. dxc5 {[%emt 0:00:50]} Bxc5 {[%emt 0:01:45]} 17. Bxc5 $11 {[%emt 0:22:49]} Qxc5 {[%emt 0:01:28]} 18. Qb3 {[%emt 0:05:30]} Bxf3 {[%emt 0:02:28]} 19. Qxf3 {[%emt 0:02:01]} Ne5 {[%emt 0:04:35]} 1/2-1/2

[Event "DMP-III LIGA Senior PK 2020"]
[Site "Bystre"]
[Date "2020.07.10"]
[Round "4.7"]
[White "Lach, Dariusz"]
[Black "Miasik, Adrian"]
[Result "0-1"]
[ECO "D02"]
[WhiteElo "1748"]
[BlackElo "1881"]
[Annotator "NA RC"]
[PlyCount "108"]
[EventDate "2020.07.05"]
[EventType "team-tourn"]
[EventCountry "POL"]
[SourceTitle "playchess.com"]
[Source "ChessBase"]
[SourceQuality "1"]
[TimeControl "5400+30"]

1. d4 {[%emt 0:00:00]} d5 {[%emt 0:00:00]} 2. Nf3 {[%emt 0:00:00]} e6 {[%emt 0:00:00]} 3. g3 {[%emt 0:00:06]} c5 {[%emt 0:02:21]} 4. e3 {[%emt 0:00:36]} Nf6 {[%emt 0:01:06]} 5. c3 {[%emt 0:00:09]} Bd6 {[%emt 0:02:00]} 6. Bg2 {[%emt 0:00:10]} Nbd7 {[%emt 0:01:23]} 7. O-O {[%emt 0:07:53]} b6 {[%emt 0:04:10]} 8. Nbd2 {[%emt 0:00:30]} Bb7 {[%emt 0:04:33]} 9. Re1 {[%emt 0:00:50]} h6 {[%emt 0:02:32]} 10. a3 {[%emt 0:02:15]} O-O {[%emt 0:02:28]} 11. Nf1 {[%emt 0:05:22]} (11. b3 $11) 11... Qc7 {[%emt 0:05:27]} 12. N1d2 {[%emt 0:03:21]} Rfe8 {[%emt 0:07:47]} 13. Nf1 {[%emt 0:05:08]} b5 {[%emt 0:07:31]} 14. Bd2 {[%emt 0:00:59]} a5 {[%emt 0:02:55]} 15. Qb3 {[%emt 0:06:28]} Qb6 $17 {[%emt 0:12:19]} 16. Rec1 {[%emt 0:01:42]} Ba6 {[%emt 0:02:02]} 17. Qd1 {[%emt 0:00:54]} Rec8 {[%emt 0:05:59]} 18. h3 {[%emt 0:00:55]} Rab8 {[%emt 0:06:56]} 19. g4 {[%emt 0:00:29]} Ne4 {[%emt 0:01:29]} 20. Be1 {[%emt 0:00:30]} Bc7 {[%emt 0:02:34]} 21. N3d2 {[%emt 0:01:20]} Ndf6 {[%emt 0:03:02]} 22. f4 {[%emt 0:00:21]} Qd6 {[%emt 0:04:05]} 23. Nxe4 {[%emt 0:02:53]} Nxe4 {[%emt 0:00:35]} 24. Ng3 {[%emt 0:00:26]} Nxg3 {[%emt 0:01:37]} 25. Bxg3 {[%emt 0:00:10]} b4 {[%emt 0:00:28]} 26. axb4 {[%emt 0:00:26]} cxb4 {[%emt 0:00:59]} 27. Bf1 {[%emt 0:01:09]} bxc3 {[%emt 0:01:20]} 28. bxc3 {[%emt 0:00:14]} Rb2 {[%emt 0:00:38]} 29. Rcb1 {[%emt 0:00:47]} Rcb8 {[%emt 0:01:25]} 30. Rxb2 {[%emt 0:00:35]} Rxb2 {[%emt 0:00:04]} 31. Rb1 {[%emt 0:00:32]} Rxb1 {[%emt 0:00:14]} 32. Qxb1 {[%emt 0:00:05]} Bxf1 {[%emt 0:00:39]} 33. Kxf1 {[%emt 0:00:15]} Qa6+ {[%emt 0:00:11]} 34. Kf2 {[%emt 0:00:24]} a4 {[%emt 0:00:21]} 35. f5 {[%emt 0:00:10]} Bxg3+ {[%emt 0:01:12]} 36. Kxg3 {[%emt 0:00:06]} a3 {[%emt 0:04:52]} 37. fxe6 {[%emt 0:00:25]} Qxe6 {[%emt 0:00:13]} 38. Kf2 {[%emt 0:00:38]} Qd6 {[%emt 0:01:32]} 39. Kg2 {[%emt 0:00:31]} Qa6 {[%emt 0:00:34]} 40. Qb8+ {[%emt 0:01:11]} Kh7 {[%emt 0:00:03]} 41. Qb1+ {[%emt 0:00:16]} g6 {[%emt 0:03:15]} 42. Qa2 {[%emt 0:00:30]} Qa5 {[%emt 0:00:40]} 43. Kf3 {[%emt 0:00:42]} Kg7 {[%emt 0:00:08]} 44. e4 {[%emt 0:00:08]} Qxc3+ {[%emt 0:00:07]} 45. Kf4 {[%emt 0:00:37]} Qxd4 {[%emt 0:00:52]} 46. Qxa3 {[%emt 0:00:17]} Qxe4+ {[%emt 0:00:44]} 47. Kg3 {[%emt 0:00:19]} d4 {[%emt 0:00:08]} 48. Qd6 {[%emt 0:00:19]} Qe3+ {[%emt 0:01:15]} 49. Kg2 {[%emt 0:00:09]} d3 {[%emt 0:00:23]} 50. h4 {[%emt 0:00:38]} d2 {[%emt 0:00:11]} 51. g5 {[%emt 0:00:27]} Qe2+ {[%emt 0:01:09]} 52. Kg3 {[%emt 0:00:40]} d1=Q {[%emt 0:00:20]} 53. gxh6+ {[%emt 0:01:04]} Kh7 {[%emt 0:00:30]} 54. Qf6 {[%emt 0:00:24]} Qdd3+ {[%emt 0:00:12]} 0-1

[Event "DMP-III LIGA Senior PK 2020"]
[Site "Bystre"]
[Date "2020.07.10"]
[Round "4.8"]
[White "Ciasnocha, Michal"]
[Black "Lach, Ireneusz"]
[Result "1-0"]
[ECO "A46"]
[WhiteElo "1795"]
[BlackElo "1897"]
[Annotator "NA RC"]
[PlyCount "117"]
[EventDate "2020.07.05"]
[EventType "team-tourn"]
[EventCountry "POL"]
[SourceTitle "playchess.com"]
[Source "ChessBase"]
[SourceQuality "1"]
[TimeControl "5400+30"]

1. d4 {[%emt 0:00:00]} Nf6 {[%emt 0:00:00]} 2. Nf3 {[%emt 0:00:00]} d6 {[%emt 0:00:00]} 3. g3 {[%emt 0:00:06]} g6 {[%emt 0:00:09]} 4. Bg2 {[%emt 0:00:16]} Bg7 {[%emt 0:00:06]} 5. O-O {[%emt 0:00:27]} O-O {[%emt 0:00:15]} 6. b3 {[%emt 0:01:39]} c6 {[%emt 0:03:13]} 7. Bb2 {[%emt 0:00:16]} Nbd7 {[%emt 0:04:37]} 8. Nbd2 {[%emt 0:02:43]} Re8 {[%emt 0:04:42]} 9. Re1 {[%emt 0:05:34] A49: 1 d4 Nf6 2 Nf3 g6 3 g3: Anti-King's Indian systems.} d5 {[%emt 0:10:52]} 10. c4 {[%emt 0:03:44] [#]} Nf8 $146 {[%emt 0:08:46]} ({Predecessor:} 10... e6 11. Qc2 Bf8 12. e4 dxe4 13. Nxe4 Nxe4 14. Qxe4 Bd6 15. Rad1 Nf6 16. Qc2 Be7 {1-0 (28) Timman,J (2555)-Henningsen,L (1930) Helsingor 2018}) 11. Ne5 {[%emt 0:06:56]} Ng4 {[%emt 0:05:20]} 12. Ndf3 {[%emt 0:22:45]} Nxe5 {[%emt 0:04:28]} 13. Nxe5 {[%emt 0:01:38]} Bf5 {[%emt 0:01:59]} 14. Rc1 {[%emt 0:02:44]} f6 {[%emt 0:11:19]} 15. Nd3 {[%emt 0:06:14]} Bh6 {[%emt 0:12:34]} 16. e3 {[%emt 0:04:16]} Bxd3 {[%emt 0:04:45]} 17. Qxd3 {[%emt 0:00:08]} e6 {[%emt 0:00:24]} 18. b4 a6 19. a4 {[%emt 0:02:35]} f5 {[%emt 0:03:34]} 20. cxd5 {[%emt 0:03:59]} cxd5 {[%emt 0:03:09]} 21. Bf1 {[%emt 0:02:16]} Nd7 {[%emt 0:03:07]} 22. Qb3 {[%emt 0:02:30]} Bf8 {[%emt 0:01:46]} 23. Rc2 {[%emt 0:03:05]} Rc8 {[%emt 0:07:15]} 24. Rxc8 {[%emt 0:01:07]} Qxc8 {[%emt 0:00:05]} 25. Rc1 {[%emt 0:00:22]} Qd8 {[%emt 0:00:21]} 26. Bc3 {[%emt 0:06:13]} Bd6 {[%emt 0:04:21]} 27. Bd3 {[%emt 0:03:22]} Nb8 {[%emt 0:04:25]} 28. Kg2 {[%emt 0:02:11]} Re7 {[%emt 0:01:06]} 29. f3 {[%emt 0:01:13]} Rc7 {[%emt 0:00:51]} 30. e4 {[%emt 0:01:14]} Bf8 {[%emt 0:00:32]} (30... fxe4 $142 31. fxe4 Qg5) 31. Re1 {[%emt 0:02:29]} fxe4 $16 {[%emt 0:00:42]} 32. fxe4 {[%emt 0:00:14]} Rf7 {[%emt 0:00:35]} 33. Rf1 {[%emt 0:01:55]} Rxf1 {[%emt 0:00:00]} 34. Bxf1 {[%emt 0:00:05]} Nc6 {[%emt 0:00:16]} 35. Be2 {[%emt 0:02:04]} Bg7 {[%emt 0:00:50]} 36. Bf3 {[%emt 0:03:49]} Nxd4 {[%emt 0:00:50]} 37. Bxd4 {[%emt 0:00:11]} Bxd4 {[%emt 0:00:06]} 38. exd5 {[%emt 0:00:22]} e5 {[%emt 0:00:14]} 39. d6+ {[%emt 0:00:26]} Kf8 {[%emt 0:01:16]} 40. Qe6 {[%emt 0:00:03]} Qg5 {[%emt 0:00:32]} 41. Qc8+ {[%emt 0:01:35]} Kg7 {[%emt 0:00:13]} 42. Qxb7+ {[%emt 0:00:25]} Kh6 {[%emt 0:00:09]} 43. Qe7 {[%emt 0:00:25]} Qd2+ {[%emt 0:00:18]} 44. Kh3 {[%emt 0:00:10]} Bg1 {[%emt 0:01:13]} 45. Qxe5 {[%emt 0:04:01]} Qxh2+ {[%emt 0:00:35]} 46. Kg4 {[%emt 0:00:06]} Qd2 {[%emt 0:00:31]} 47. Qf4+ {[%emt 0:02:15]} Qxf4+ {[%emt 0:00:12]} 48. Kxf4 {[%emt 0:00:05]} Bb6 {[%emt 0:00:20]} 49. a5 {[%emt 0:00:11]} Bd8 {[%emt 0:00:10]} 50. Be2 {[%emt 0:00:16]} Kg7 {[%emt 0:00:53]} 51. Bxa6 {[%emt 0:00:14]} Kf6 {[%emt 0:00:18]} 52. Bc4 {[%emt 0:00:17]} h5 {[%emt 0:00:12]} 53. Ke4 {[%emt 0:01:16]} g5 {[%emt 0:00:23]} 54. Kd5 {[%emt 0:00:29]} h4 {[%emt 0:00:22]} 55. gxh4 {[%emt 0:00:09]} gxh4 {[%emt 0:00:05]} 56. Bf1 {[%emt 0:00:10]} Kf7 {[%emt 0:00:47]} 57. Bh3 {[%emt 0:00:09]} Kf6 {[%emt 0:00:07]} 58. Kc6 {[%emt 0:00:20]} Ke5 {[%emt 0:00:12]} 59. a6 {[%emt 0:00:20]} 1-0